fUST/lending_fUST_20240125
["ID","MTS","AMOUNT","RATE_DAILY","PERIOD"]
[312706398,1706174219870,-281.49189024,0.0005041,120]
[312706399,1706174219894,-933.93,0.0005041,120]
[312706400,1706174219918,-500.0,0.0005041,120]
[312706401,1706174219944,-570.29,0.0005041,120]
[312706402,1706174219969,-500.0,0.0005041,120]
[312706403,1706174219992,-500.0,0.0005041,120]
[312706404,1706174220017,-500.0,0.0005041,120]
[312706405,1706174220041,-519.7,0.0005041,120]
[312706406,1706174220065,-500.0,0.0005041,120]
[312706407,1706174220090,-500.0,0.0005041,120]
[312706408,1706174220114,-500.0,0.0005041,120]
[312706409,1706174220138,-500.0,0.0005041,120]
[312706410,1706174220162,-1541.6,0.0005041,120]
[312706411,1706174220186,-1163.28,0.0005041,120]
[312706412,1706174220210,-500.0,0.0005041,120]
[312706413,1706174220236,-500.0,0.0005041,120]
[312706414,1706174220330,-500.0,0.0005041,120]
[312706415,1706174220358,-500.0,0.0005041,120]
[312706416,1706174220384,-680.71,0.0005041,120]
[312706417,1706174220410,-674.55,0.0005041,120]
[312706418,1706174220434,-500.0,0.0005041,120]
[312706419,1706174220459,-500.0,0.0005041,120]
[312706420,1706174220483,-500.0,0.0005041,120]
[312706421,1706174220509,-500.0,0.0005041,60]
[312706422,1706174220534,-500.0,0.0005041,120]
[312706423,1706174220559,-500.0,0.0005041,120]
[312706424,1706174220583,-500.0,0.0005041,120]
[312706425,1706174220607,-1391.77,0.0005041,120]
[312706426,1706174220632,-600.0,0.0005041,120]
[312706427,1706174220657,-500.0,0.0005041,120]
[312706428,1706174220682,-1497.83,0.0005041,120]
[312706429,1706174220707,-1205.12,0.0005041,120]
[312706430,1706174220730,-500.0,0.0005041,120]
[312706431,1706174220756,-500.0,0.0005041,120]
[312706432,1706174220780,-500.0,0.0005041,120]
[312706433,1706174220806,-549.01,0.0005041,120]
[312706434,1706174220831,-2036.55,0.0005041,120]
[312706435,1706174220858,-605.42,0.0005041,120]
[312706436,1706174220883,-1951.66,0.0005041,120]
[312706437,1706174220907,-676.19,0.0005041,120]
[312706438,1706174220931,-1357.62,0.0005041,120]
[312706439,1706174220957,-243.95012511,0.0005041,120]
[312706440,1706174220981,-1041.67,0.0005041,120]
[312706441,1706174221007,-175.51988716,0.0005041,120]
[312706442,1706174221031,-377.240562,0.0005041,120]
[312706443,1706174221056,-500.0,0.0005041,120]
[312706444,1706174221082,-545.27,0.0005041,120]
[312706445,1706174221107,-500.0,0.0005041,120]
[312706446,1706174221134,-500.0,0.0005041,120]
[312706447,1706174221158,-2255.7,0.0005041,120]
[312706448,1706174221182,-500.0,0.0005041,120]
[312706449,1706174221211,-842.04,0.0005041,120]
[312706450,1706174221235,-500.0,0.0005041,120]
[312706451,1706174221262,-500.0,0.0005041,120]
[312706452,1706174221287,-522.23,0.0005041,120]
[312706453,1706174221314,-1611.85,0.0005041,120]
[312706454,1706174221341,-500.0,0.0005041,120]
[312706455,1706174221367,-500.0,0.0005041,120]
[312706456,1706174221392,-500.0,0.0005041,120]
[312706457,1706174221418,-594.6,0.0005041,120]
[312706458,1706174221444,-500.0,0.0005041,120]
[312706459,1706174221469,-500.0,0.0005041,60]
[312706460,1706174221493,-773.17,0.0005041,120]
[312706461,1706174221517,-576.56,0.0005041,120]
[312706462,1706174221540,-500.0,0.0005041,120]
[312706463,1706174221567,-1394.39,0.0005041,120]
[312706464,1706174221591,-500.0,0.0005041,120]
[312706465,1706174221618,-1637.55,0.0005041,120]
[312706466,1706174221701,-500.0,0.0005041,120]
[312706467,1706174221739,-500.0,0.0005041,120]
[312706468,1706174221767,-500.0,0.0005041,120]
[312706469,1706174221794,-500.0,0.0005041,120]
[312706470,1706174221823,-2198.17,0.0005041,120]
[312706471,1706174221851,-500.0,0.00050684,120]
[312706472,1706174221879,-500.0,0.00050684,120]
[312706473,1706174221907,-560.83,0.00050684,120]
[312706474,1706174221939,-500.0,0.00050684,120]
[312706475,1706174221965,-500.0,0.00050684,120]
[312706476,1706174221991,-500.0,0.00050684,120]
[312706477,1706174222017,-500.0,0.00050684,120]
[312706478,1706174222044,-500.0,0.00050684,120]
[312706479,1706174222068,-542.32,0.00050684,120]
[312706480,1706174222094,-500.0,0.00050684,120]
[312706481,1706174222119,-500.0,0.00050684,120]
[312706482,1706174222144,-500.0,0.00050684,120]
[312706483,1706174222169,-500.0,0.00050684,120]
[312706484,1706174222193,-500.0,0.00050684,120]
[312706485,1706174222218,-500.0,0.00050684,120]
[312706486,1706174222242,-500.0,0.00050684,120]
[312706487,1706174222266,-500.0,0.00050684,120]
[312706488,1706174222290,-500.0,0.00050684,120]
[312706489,1706174222314,-500.0,0.00050684,120]
[312706490,1706174222339,-500.0,0.00050684,120]
[312706491,1706174222364,-500.0,0.00050684,120]
[312706492,1706174222389,-500.0,0.00050684,120]
[312706493,1706174222415,-500.0,0.00050684,120]
[312706494,1706174222439,-500.0,0.00050684,120]
[312706495,1706174222463,-500.0,0.00050684,120]
[312706496,1706174222487,-500.0,0.00050684,120]
[312706497,1706174222511,-732.6,0.00050684,120]
[312706498,1706174222535,-500.0,0.00050684,120]
[312706499,1706174222559,-500.0,0.00050684,120]
[312706500,1706174222586,-500.0,0.00050684,120]
[312706501,1706174222612,-500.0,0.00050684,120]
[312706502,1706174222638,-500.0,0.00050684,120]
[312706503,1706174222664,-500.0,0.00050684,120]
[312706504,1706174222690,-623.76,0.00050684,120]
[312706505,1706174222715,-500.0,0.00050684,120]
[312706506,1706174222739,-278.96061499,0.00050684,120]
[312706507,1706174222767,-500.0,0.00050684,120]
[312706508,1706174222793,-500.0,0.00050684,120]
[312706509,1706174222818,-505.33,0.00050684,120]
[312706510,1706174222843,-500.0,0.00050684,120]
[312706511,1706174222867,-497.30588537,0.00050684,120]
[312706512,1706174222892,-500.0,0.00050684,120]
[312706513,1706174222916,-708.5,0.00050684,120]
[312706514,1706174222942,-500.0,0.00050684,120]
[312706515,1706174222966,-519.85,0.00050684,120]
[312706516,1706174222990,-541.46,0.00050684,120]
[312706517,1706174223075,-500.0,0.00050684,120]
[312706518,1706174223172,-500.0,0.00050684,120]
[312706519,1706174223197,-500.0,0.00050684,120]
[312706520,1706174223224,-621.56,0.00050684,120]
[312706521,1706174223248,-150.0,0.00050684,120]
[312706522,1706174223273,-500.0,0.00050684,120]
[312706523,1706174223298,-500.0,0.00050684,120]
[312706524,1706174223323,-500.0,0.00050684,120]
[312706525,1706174223347,-500.0,0.00050684,120]
[312706526,1706174223371,-541.89,0.00050684,120]
[312706527,1706174223395,-500.0,0.00050684,120]
[312706528,1706174223420,-500.0,0.00050684,120]
[312706529,1706174223445,-647.93,0.00050684,120]
[312706530,1706174223470,-500.0,0.00050684,120]
[312706531,1706174223495,-511.47,0.00050684,120]
[312706532,1706174223521,-500.0,0.00050684,120]
[312706533,1706174223548,-500.0,0.00050684,120]
[312706534,1706174223573,-500.0,0.00050684,120]
[312706535,1706174223599,-500.0,0.00050684,120]
[312706536,1706174223624,-343.17229051,0.00050684,120]
[312706537,1706174223649,-500.0,0.00050684,120]
[312706538,1706174223676,-500.0,0.00050684,120]
[312706539,1706174223701,-500.0,0.00050684,120]
[312706540,1706174223725,-500.0,0.00050684,120]
[312706541,1706174223750,-500.0,0.00050684,120]
[312706542,1706174223775,-1320.99,0.00050684,120]
[312706543,1706174223800,-500.0,0.00050684,120]
[312706544,1706174223825,-500.0,0.00050684,120]
[312706545,1706174223850,-500.0,0.00050684,120]
[312706546,1706174223874,-933.93,0.00050684,120]
[312706547,1706174223899,-500.0,0.00050684,120]
[312706548,1706174223925,-570.29,0.00050684,120]
[312706549,1706174223950,-500.0,0.00050684,120]
[312706550,1706174223975,-500.0,0.00050684,120]
[312706551,1706174223999,-500.0,0.00050684,120]
[312706552,1706174224025,-519.7,0.00050684,120]
[312706553,1706174224049,-500.0,0.00050684,120]
[312706554,1706174224074,-500.0,0.00050684,120]
[312706555,1706174224099,-500.0,0.00050684,120]
[312706556,1706174224124,-500.0,0.00050684,120]
[312706557,1706174224148,-1541.6,0.00050684,120]
[312706558,1706174224175,-1163.28,0.00050684,120]
[312706559,1706174224199,-500.0,0.00050684,120]
[312706560,1706174224223,-500.0,0.00050684,120]
[312706561,1706174224247,-500.0,0.00050684,120]
[312706562,1706174224271,-500.0,0.00050684,120]
[312706563,1706174224295,-680.71,0.00050684,120]
[312706564,1706174224322,-674.55,0.00050684,120]
[312706565,1706174224347,-500.0,0.00050684,120]
[312706566,1706174224370,-500.0,0.00050684,120]
[312706567,1706174224463,-500.0,0.00050684,120]
[312706568,1706174224490,-500.0,0.00050684,60]
[312706569,1706174224516,-500.0,0.00050684,120]
[312706570,1706174224544,-500.0,0.00050684,120]
[312706571,1706174224572,-500.0,0.00050684,120]
[312706572,1706174224599,-1391.77,0.00050684,120]
[312706573,1706174224624,-600.0,0.00050684,120]
[312706574,1706174224648,-500.0,0.00050684,120]
[312706575,1706174224676,-1497.83,0.00050684,120]
[312706576,1706174224701,-1205.12,0.00050684,120]
[312706577,1706174224725,-500.0,0.00050684,120]
[312706578,1706174224751,-500.0,0.00050684,120]
[312706579,1706174224777,-316.03855705,0.00050684,120]
[312706580,1706174224802,-549.01,0.00050684,120]
[312706581,1706174224827,-2036.55,0.00050684,120]
[312706582,1706174224851,-605.42,0.00050684,120]
[312706583,1706174224875,-1951.66,0.00050684,120]
[312706584,1706174224899,-676.19,0.00050684,120]
[312706585,1706174224924,-1357.62,0.00050684,120]
[312706586,1706174224948,-1041.67,0.00050684,120]
[312706587,1706174224972,-500.0,0.00050684,120]
[312706588,1706174224996,-545.27,0.00050684,120]
[312706589,1706174225021,-500.0,0.00050684,120]
[312706590,1706174225047,-505.32017636,0.00050684,120]
[312706591,1706174225074,-2255.7,0.00050684,120]
[312706592,1706174225105,-500.0,0.00050684,120]
[312706593,1706174225130,-842.04,0.00050684,120]
[312706594,1706174225155,-500.0,0.00050684,120]
[312706595,1706174225182,-606.59122255,0.00050684,120]
[312706596,1706174225207,-522.23,0.00050684,120]
[312706597,1706174225231,-1611.85,0.00050684,120]
[312706598,1706174225255,-500.0,0.00050684,120]
[312706599,1706174225279,-500.0,0.00050684,120]
[312706600,1706174225303,-500.0,0.00050684,120]
[312706601,1706174225327,-594.6,0.00050684,120]
[312706602,1706174225353,-500.0,0.00050684,120]
[312706603,1706174225377,-500.0,0.00050684,60]
[312706604,1706174225402,-773.17,0.00050684,120]
[312706605,1706174225427,-576.56,0.00050684,120]
[312706606,1706174225451,-500.0,0.00050684,120]
[312706607,1706174225476,-1394.39,0.00050684,120]
[312706608,1706174225500,-500.0,0.00050684,120]
[312706609,1706174225525,-1637.55,0.00050684,120]
[312706610,1706174225549,-500.0,0.00050684,120]
[312706611,1706174225574,-500.0,0.00050684,120]
[312706612,1706174225598,-500.0,0.00050684,120]
[312706613,1706174225623,-500.0,0.00050684,120]
[312706614,1706174225721,-2198.17,0.00050684,120]
[312706615,1706174225745,-999.0,0.0005077,31]
[312706616,1706174225772,-999.0,0.0005078,31]
[312706617,1706174225796,-15041.88201121,0.0005091,60]
[312706618,1706174225822,-15041.88201121,0.00050912,60]
[312706619,1706174225849,-150.5,0.0005092,120]
[312706620,1706174225875,-450.0,0.0005092,120]
[312706621,1706174225901,-228.0,0.0005092,120]
[312706622,1706174225927,-612.0,0.0005092,120]
[312706623,1706174225952,-150.5,0.0005093,120]
[312706624,1706174225976,-450.0,0.0005093,120]
[312706625,1706174226000,-228.0,0.0005093,120]
[312706626,1706174226024,-612.0,0.0005093,120]
[312706627,1706174226050,-980.669168,0.00050936,60]
[312706628,1706174231414,-348.64259986,0.00044786,60]
[312706629,1706174231445,-466.79529719,0.00044957,60]
[312706630,1706174231470,-398.42134225,0.00044957,60]
[312706631,1706174231495,-227.0821289,0.00044957,60]
[312706632,1706174231520,-159.67503241,0.00044957,60]
[312706633,1706174231545,-855.61911132,0.00045,30]
[312706634,1706174231573,-528.79,0.00049315,120]
[312706635,1706174231597,-508.35,0.00049315,120]
[312706636,1706174231621,-500.0,0.00049315,120]
[312706637,1706174231646,-500.0,0.00049315,120]
[312706638,1706174231671,-500.0,0.00049315,120]
[312706639,1706174231696,-528.79,0.00049589,120]
[312706640,1706174231721,-508.35,0.00049589,120]
[312706641,1706174231745,-500.0,0.00049589,120]
[312706642,1706174231772,-157.12371276,0.00049589,120]
[312706643,1706174231798,-528.79,0.00049863,120]
[312706644,1706174231838,-508.35,0.00049863,120]
[312706645,1706174231867,-500.0,0.00049863,120]
[312706646,1706174231894,-200.05512737,0.00049999,120]
[312706647,1706174231920,-170.75200382,0.00049999,120]
[312706648,1706174231949,-528.79,0.00050136,120]
[312706649,1706174231975,-508.35,0.00050136,120]
[312706650,1706174232001,-500.0,0.00050136,120]
[312706651,1706174232028,-508.35,0.0005041,120]
[312706652,1706174232156,-528.79,0.0005041,120]
[312706653,1706174232182,-500.0,0.0005041,120]
[312706654,1706174232207,-528.79,0.00050684,120]
[312706655,1706174232232,-508.35,0.00050684,120]
[312706656,1706174232258,-500.0,0.00050684,120]
[312706657,1706174232282,-14061.21284321,0.00050936,60]
[312706658,1706174232306,-15041.88201121,0.00050939,60]
[312706659,1706174232329,-1007.01,0.0005095,31]
[312706660,1706174232353,-583.88304892,0.00050958,120]
[312706661,1706174232377,-543.99994344,0.00050958,120]
[312706662,1706174232402,-500.0,0.00050958,120]
[312706663,1706174232426,-500.0,0.00050958,120]
[312706664,1706174232450,-500.0,0.00050958,120]
[312706665,1706174232473,-542.32,0.00050958,120]
[312706666,1706174232497,-500.0,0.00050958,120]
[312706667,1706174232521,-500.0,0.00050958,120]
[312706668,1706174232545,-500.0,0.00050958,120]
[312706669,1706174232569,-500.0,0.00050958,120]
[312706670,1706174232592,-500.0,0.00050958,120]
[312706671,1706174232617,-500.0,0.00050958,120]
[312706672,1706174232641,-500.0,0.00050958,120]
[312706673,1706174232665,-500.0,0.00050958,120]
[312706674,1706174232690,-500.0,0.00050958,120]
[312706675,1706174232714,-224.50803745,0.00050958,120]
[312706676,1706174232738,-252.94173829,0.00050958,120]
[312706677,1706174232762,-500.0,0.00050958,120]
[312706678,1706174232789,-500.0,0.00050958,120]
[312706679,1706174232814,-500.0,0.00050958,120]
[312706680,1706174232839,-500.0,0.00050958,120]
[312706681,1706174232864,-500.0,0.00050958,120]
[312706682,1706174232890,-500.0,0.00050958,120]
[312706683,1706174232914,-732.6,0.00050958,120]
[312706684,1706174232940,-500.0,0.00050958,120]
[312706685,1706174232964,-281.51507826,0.00050958,120]
[312706686,1706174232988,-500.0,0.00050958,120]
[312706687,1706174233013,-166.57525334,0.00050958,120]
[312706688,1706174233039,-176.05762922,0.00050958,120]
[312706689,1706174233064,-500.0,0.00050958,120]
[312706690,1706174233089,-623.76,0.00050958,120]
[312706691,1706174233114,-500.0,0.00050958,120]
[312706692,1706174233139,-500.0,0.00050958,120]
[312706693,1706174233164,-500.0,0.00050958,120]
[312706694,1706174233191,-505.33,0.00050958,120]
[312706695,1706174233284,-500.0,0.00050958,120]
[312706696,1706174233310,-500.0,0.00050958,120]
[312706697,1706174233335,-708.5,0.00050958,120]
[312706698,1706174233359,-541.46,0.00050958,120]
[312706699,1706174233384,-500.0,0.00050958,120]
[312706700,1706174233409,-500.0,0.00050958,120]
[312706701,1706174233436,-500.0,0.00050958,120]
[312706702,1706174233460,-621.56,0.00050958,120]
[312706703,1706174233483,-150.0,0.00050958,120]
[312706704,1706174233506,-500.0,0.00050958,120]
[312706705,1706174233530,-500.0,0.00050958,120]
[312706706,1706174233554,-500.0,0.00050958,120]
[312706707,1706174233578,-500.0,0.00050958,120]
[312706708,1706174233604,-541.89,0.00050958,120]
[312706709,1706174233629,-500.0,0.00050958,120]
[312706710,1706174233653,-500.0,0.00050958,120]
[312706711,1706174233679,-647.93,0.00050958,120]
[312706712,1706174233705,-500.0,0.00050958,120]
[312706713,1706174233730,-511.47,0.00050958,120]
[312706714,1706174233754,-500.0,0.00050958,120]
[312706715,1706174233778,-500.0,0.00050958,120]
[312706716,1706174233803,-500.0,0.00050958,120]
[312706717,1706174233827,-500.0,0.00050958,120]
[312706718,1706174233852,-500.0,0.00050958,120]
[312706719,1706174233877,-500.0,0.00050958,120]
[312706720,1706174233903,-500.0,0.00050958,120]
[312706721,1706174233927,-500.0,0.00050958,120]
[312706722,1706174233951,-500.0,0.00050958,120]
[312706723,1706174233976,-1320.99,0.00050958,120]
[312706724,1706174234000,-500.0,0.00050958,120]
[312706725,1706174234025,-500.0,0.00050958,120]
[312706726,1706174234049,-933.93,0.00050958,120]
[312706727,1706174234072,-500.0,0.00050958,120]
[312706728,1706174234096,-570.29,0.00050958,120]
[312706729,1706174234121,-500.0,0.00050958,120]
[312706730,1706174234145,-500.0,0.00050958,120]
[312706731,1706174234170,-500.0,0.00050958,120]
[312706732,1706174234194,-519.7,0.00050958,120]
[312706733,1706174234218,-500.0,0.00050958,120]
[312706734,1706174234243,-500.0,0.00050958,120]
[312706735,1706174234268,-500.0,0.00050958,120]
[312706736,1706174234348,-500.0,0.00050958,120]
[312706737,1706174234384,-1163.28,0.00050958,120]
[312706738,1706174234409,-500.0,0.00050958,120]
[312706739,1706174234434,-500.0,0.00050958,120]
[312706740,1706174234460,-500.0,0.00050958,120]
[312706741,1706174234486,-680.71,0.00050958,120]
[312706742,1706174234509,-674.55,0.00050958,120]
[312706743,1706174234533,-500.0,0.00050958,120]
[312706744,1706174234558,-500.0,0.00050958,120]
[312706745,1706174234583,-500.0,0.00050958,60]
[312706746,1706174234607,-500.0,0.00050958,120]
[312706747,1706174234631,-500.0,0.00050958,120]
[312706748,1706174234656,-500.0,0.00050958,120]
[312706749,1706174234682,-500.0,0.00050958,120]
[312706750,1706174234707,-1391.77,0.00050958,120]
[312706751,1706174234731,-400.36812445,0.00050958,120]
[312706752,1706174234755,-500.0,0.00050958,120]
[312706753,1706174234782,-1497.83,0.00050958,120]
[312706754,1706174234809,-1205.12,0.00050958,120]
[312706755,1706174234834,-500.0,0.00050958,120]
[312706756,1706174234860,-500.0,0.00050958,120]
[312706757,1706174234886,-549.01,0.00050958,120]
[312706758,1706174234911,-2036.55,0.00050958,120]
[312706759,1706174234938,-605.42,0.00050958,120]
[312706760,1706174234963,-1951.66,0.00050958,120]
[312706761,1706174234990,-676.19,0.00050958,120]
[312706762,1706174235014,-1357.62,0.00050958,120]
[312706763,1706174235039,-1041.67,0.00050958,120]
[312706764,1706174235064,-500.0,0.00050958,120]
[312706765,1706174235089,-500.0,0.00050958,120]
[312706766,1706174235114,-545.27,0.00050958,120]
[312706767,1706174235139,-2255.7,0.00050958,120]
[312706768,1706174235164,-500.0,0.00050958,120]
[312706769,1706174235189,-842.04,0.00050958,120]
[312706770,1706174235214,-500.0,0.00050958,120]
[312706771,1706174235238,-522.23,0.00050958,120]
[312706772,1706174235262,-1611.85,0.00050958,120]
[312706773,1706174235287,-500.0,0.00050958,120]
[312706774,1706174235312,-500.0,0.00050958,120]
[312706775,1706174235337,-500.0,0.00050958,120]
[312706776,1706174235364,-594.6,0.00050958,120]
[312706777,1706174235449,-185.32692543,0.00050958,120]
[312706778,1706174235475,-500.0,0.00050958,60]
[312706779,1706174235500,-773.17,0.00050958,120]
[312706780,1706174235525,-576.56,0.00050958,120]
[312706781,1706174235550,-625.99502659,0.00050958,120]
[312706782,1706174235575,-1394.39,0.00050958,120]
[312706783,1706174235599,-500.0,0.00050958,120]
[312706784,1706174235625,-1637.55,0.00050958,120]
[312706785,1706174235650,-500.0,0.00050958,120]
[312706786,1706174235675,-500.0,0.00050958,120]
[312706787,1706174235700,-500.0,0.00050958,120]
[312706788,1706174235726,-474.5852371,0.00050958,120]
[312706789,1706174235751,-2198.17,0.00050958,120]
[312706790,1706174235778,-528.79,0.00050958,120]
[312706791,1706174235804,-508.35,0.00050958,120]
[312706792,1706174235829,-500.0,0.00050958,120]
[312706793,1706174235855,-450.15,0.0005096,120]
[312706794,1706174235881,-233.17,0.0005096,120]
[312706795,1706174235906,-612.44,0.0005096,120]
[312706796,1706174235930,-999.0,0.0005096,31]
[312706797,1706174235955,-202.67,0.0005097,120]
[312706798,1706174235980,-450.0,0.0005097,120]
[312706799,1706174236004,-228.0,0.0005097,120]
[312706800,1706174236028,-612.0,0.0005097,120]
[312706801,1706174236052,-370187.92274721,0.00050992,33]
[312706802,1706174240012,-165.0,0.00043,90]
[312706803,1706174240038,-165.0,0.00043014,90]
[312706804,1706174240076,-500.0,0.00049315,120]
[312706805,1706174240101,-500.0,0.00049315,120]
[312706806,1706174240128,-501.86,0.00049315,120]
[312706807,1706174240154,-500.0,0.00049589,120]
[312706808,1706174240180,-500.0,0.00049589,120]
[312706809,1706174240205,-500.0,0.00049589,120]
[312706810,1706174240230,-501.86,0.00049589,120]
[312706811,1706174240256,-500.0,0.00049863,120]
[312706812,1706174240282,-500.0,0.00049863,120]
[312706813,1706174240309,-500.0,0.00049863,120]
[312706814,1706174240334,-501.86,0.00049863,120]
[312706815,1706174240360,-500.0,0.00050136,120]
[312706816,1706174240385,-500.0,0.00050136,120]
[312706817,1706174240409,-500.0,0.00050136,120]
[312706818,1706174240435,-500.0,0.0005041,120]
[312706819,1706174240460,-500.0,0.0005041,120]
[312706820,1706174240483,-500.0,0.0005041,120]
[312706821,1706174240508,-500.0,0.00050684,120]
[312706822,1706174240533,-500.0,0.00050684,120]
[312706823,1706174240557,-500.0,0.00050684,120]
[312706824,1706174240583,-500.0,0.00050958,120]
[312706825,1706174240607,-500.0,0.00050958,120]
[312706826,1706174240632,-500.0,0.00050958,120]
[312706827,1706174240657,-488164.42,0.00050992,33]
[312706828,1706174243694,-165.0,0.00044877,90]
[312706829,1706174243723,-165.0,0.00047121,90]
[312706830,1706174243750,-500.0,0.00049315,120]
[312706831,1706174243776,-500.0,0.00049589,120]
[312706832,1706174243802,-306.66434378,0.00049863,120]
[312706833,1706174243828,-501.86,0.00050136,120]
[312706834,1706174243853,-165.0,0.00050262,120]
[312706835,1706174243879,-501.86,0.0005041,120]
[312706836,1706174243904,-501.86,0.00050684,120]
[312706837,1706174243929,-501.86,0.00050958,120]
[312706838,1706174243954,-496190.89565622,0.00050992,33]
[312706839,1706174246856,-500.0,0.00049315,120]
[312706840,1706174246882,-500.0,0.00049589,120]
[312706841,1706174246909,-500.0,0.00049863,120]
[312706842,1706174246936,-500.0,0.00050136,120]
[312706843,1706174246962,-498000.0,0.00050992,33]
[312706844,1706174249852,-1060.97,0.00049315,120]
[312706845,1706174249880,-1060.97,0.00049589,120]
[312706846,1706174249906,-1060.97,0.00049863,120]
[312706847,1706174249934,-1060.97,0.00050136,120]
[312706848,1706174249962,-500.0,0.0005041,120]
[312706849,1706174249989,-1060.97,0.0005041,120]
[312706850,1706174250016,-500.0,0.00050684,120]
[312706851,1706174250042,-1060.97,0.00050684,120]
[312706852,1706174250067,-500.0,0.00050958,120]
[312706853,1706174250092,-1060.97,0.00050958,120]
[312706854,1706174250118,-157848.44552467,0.00050992,33]
[312706855,1706174250142,-100000.0,0.00051,90]
[312706856,1706174250166,-233224.76447533,0.00051,120]
[312706857,1706174253048,-500.0,0.00049315,120]
[312706858,1706174253077,-500.0,0.00049589,120]
[312706859,1706174253104,-500.0,0.00049863,120]
[312706860,1706174253132,-500.0,0.00050136,120]
[312706861,1706174253157,-500.0,0.0005041,120]
[312706862,1706174253181,-500.0,0.00050684,120]
[312706863,1706174253265,-497000.0,0.00051,120]
[312706864,1706174255780,-500.0,0.00049315,120]
[312706865,1706174255805,-500.0,0.00049315,120]
[312706866,1706174255831,-500.0,0.00049315,120]
[312706867,1706174255857,-500.0,0.00049589,120]
[312706868,1706174255884,-500.0,0.00049589,120]
[312706869,1706174255910,-500.0,0.00049863,120]
[312706870,1706174255936,-500.0,0.00049863,120]
[312706871,1706174255964,-500.0,0.00050136,120]
[312706872,1706174256004,-299.55599825,0.00050136,120]
[312706873,1706174256059,-500.0,0.0005041,120]
[312706874,1706174256109,-500.0,0.00050958,120]
[312706875,1706174256159,-269775.23552467,0.00051,120]
[312706876,1706174256210,-224925.20847708,0.00051,120]
[312706877,1706174268115,-500.0,0.00049315,120]
[312706878,1706174268143,-500.0,0.00049315,120]
[312706879,1706174268170,-500.0,0.00049315,120]
[312706880,1706174268194,-500.0,0.00049315,120]
[312706881,1706174268219,-500.0,0.00049315,120]
[312706882,1706174268245,-500.0,0.00049315,120]
[312706883,1706174268270,-500.0,0.00049315,120]
[312706884,1706174268296,-343.97249449,0.00049589,120]
[312706885,1706174268322,-500.0,0.00049589,120]
[312706886,1706174268347,-500.0,0.00049589,120]
[312706887,1706174268373,-500.0,0.00049589,120]
[312706888,1706174268397,-500.0,0.00049589,120]
[312706889,1706174268423,-500.0,0.00049589,120]
[312706890,1706174268451,-500.0,0.00049589,120]
[312706891,1706174268476,-500.0,0.00049589,120]
[312706892,1706174268502,-500.0,0.00049863,120]
[312706893,1706174268527,-500.0,0.00049863,120]
[312706894,1706174268553,-500.0,0.00049863,120]
[312706895,1706174268578,-500.0,0.00049863,120]
[312706896,1706174268603,-500.0,0.00049863,120]
[312706897,1706174268627,-500.0,0.00049863,120]